bitfinex/quotes_SOLUSD_20250106
["timestamp","ask_amount","ask_price","bid_price","bid_amount"]
[1736159608804,9.22001441,214.76,214.69,3.523]
[1736159609311,9.22001441,214.75,214.69,3.523]
[1736159609893,9.22001441,214.73,214.69,1.583]
[1736159610491,9.22001441,214.72,214.69,1.583]
[1736159611592,11.6392,214.79,214.69,1.583]
[1736159611593,9.22001441,214.71,214.69,1.583]
[1736159612512,9.22001441,214.71,214.67,6.5188]
[1736159615994,9.22001441,214.69,214.65,1.94]
[1736159619000,9.22001441,214.69,214.63,10.84781441]
[1736159619200,9.22001441,214.69,214.63,12.78781441]
[1736159620027,9.22001441,214.7,214.63,12.78781441]
[1736159621608,9.22001441,214.71,214.63,3.5678]
[1736159621831,9.22001441,214.7,214.64,9.22001441]
[1736159622205,23.776884,214.76,214.64,9.22001441]
[1736159622405,9.22001441,214.7,214.64,9.22001441]
[1736159622601,23.776884,214.76,214.65,9.22001441]
[1736159622830,9.22001441,214.71,214.65,9.22001441]
[1736159623827,9.22001441,214.72,214.65,9.22001441]
[1736159625524,9.22001441,214.78,214.71,9.22001441]
[1736159625715,9.22001441,214.77,214.7,11.16001441]
[1736159627229,43.776884,214.81,214.71,9.22001441]
[1736159627425,9.22001441,214.78,214.71,9.22001441]
[1736159630434,20.0,214.84,214.72,9.91847972]
[1736159630647,9.22001441,214.8,214.73,9.22001441]
[1736159632838,23.776884,214.83,214.73,15.76751441]
[1736159633029,9.22001441,214.8,214.73,15.76751441]
[1736159633231,9.22001441,214.79,214.73,6.5475]
[1736159633642,19.1914,214.87,214.74,9.22001441]
[1736159633937,23.776884,214.86,214.75,10.78521441]
[1736159634121,9.22001441,214.82,214.75,10.78521441]
[1736159634328,9.22001441,214.84,214.76,9.22001441]
[1736159634520,9.22001441,214.84,214.77,1.94]
[1736159634914,9.22001441,214.83,214.77,1.94]
[1736159635238,9.22001441,214.82,214.77,1.94]
[1736159635851,15.42606979,214.91,214.77,1.94]
[1736159635852,9.22001441,214.83,214.77,1.94]
[1736159636043,9.22001441,214.84,214.77,11.16001441]
[1736159636345,20.0,214.88,214.77,11.16001441]
[1736159636548,9.22001441,214.85,214.77,11.16001441]
[1736159636841,9.22001441,214.85,214.78,9.22001441]
[1736159637630,11.6332,214.91,214.79,9.34550441]
[1736159637834,9.22001441,214.87,214.8,15.76751441]
[1736159638240,9.22001441,214.87,214.8,6.5475]
[1736159643018,9.22001441,214.86,214.8,6.5475]
[1736159648349,9.22001441,214.87,214.81,1.621]
[1736159651140,9.22001441,214.83,214.81,1.621]
[1736159652449,9.22001441,214.84,214.81,1.621]
[1736159653736,23.776884,214.9,214.81,1.621]
[1736159654059,9.22001441,214.84,214.81,1.621]
[1736159654452,23.776884,214.9,214.81,1.621]
[1736159654660,9.22001441,214.84,214.81,1.621]
[1736159654968,23.776884,214.9,214.81,1.621]
[1736159655136,9.22001441,214.85,214.81,1.621]
[1736159655339,23.776884,214.9,214.81,1.621]
[1736159655546,9.22001441,214.85,214.81,1.621]
[1736159657860,20.0,214.91,214.81,1.621]
[1736159658065,9.22001441,214.86,214.81,1.621]
[1736159659237,9.22001441,214.85,214.81,1.621]
[1736159659437,9.22001441,214.84,214.81,1.621]
[1736159660149,9.22001441,214.85,214.81,1.621]
[1736159660850,23.776884,214.9,214.81,1.621]
[1736159661050,20.0,214.91,214.81,1.621]
[1736159661251,9.22001441,214.87,214.81,1.621]
[1736159661766,20.0,214.91,214.81,1.621]
[1736159662075,9.22001441,214.86,214.81,1.621]
[1736159662767,9.22001441,214.87,214.81,1.621]
[1736159666780,9.22001441,214.88,214.81,1.621]
[1736159667271,1.5816,214.97,214.86,9.22001441]
[1736159667444,7.29463147,215.01,214.88,9.22001441]
[1736159667644,9.22001441,214.96,214.88,9.22001441]
[1736159668667,13.5668,215.02,214.88,9.22001441]
[1736159668668,9.22001441,214.95,214.88,9.22001441]
[1736159671279,9.22001441,214.95,214.87,8.3013]
[1736159671584,9.22001441,214.94,214.87,17.52131441]
[1736159672175,9.22001441,214.95,214.88,9.22001441]
[1736159672978,9.22001441,214.93,214.87,17.52131441]
[1736159673158,9.22001441,214.92,214.87,10.2413]
[1736159673856,9.22001441,214.93,214.87,10.2413]
[1736159674192,9.22001441,214.92,214.87,10.2413]
[1736159674781,9.22001441,214.93,214.87,19.46131441]
[1736159675783,9.22001441,214.93,214.87,10.2413]
[1736159675987,9.22001441,214.92,214.87,10.2413]
[1736159676232,23.776884,214.97,214.87,10.2413]
[1736159676490,9.22001441,214.93,214.87,10.2413]
[1736159678221,20.0,214.99,214.87,10.2413]
[1736159678519,9.22001441,214.94,214.87,19.46131441]
[1736159678686,9.22001441,214.93,214.87,19.46131441]
[1736159679308,9.22001441,214.93,214.87,10.2413]
[1736159684507,9.22001441,214.94,214.87,19.46131441]
[1736159684696,9.22001441,214.95,214.88,9.22001441]
[1736159686308,9.22001441,214.94,214.87,19.46131441]
[1736159686490,9.22001441,214.93,214.87,10.2413]
[1736159688119,9.22001441,214.94,214.87,19.46131441]
[1736159688418,9.22001441,214.95,214.88,9.22001441]
[1736159688621,9.22001441,214.95,214.87,19.46131441]
[1736159691596,9.22001441,214.94,214.87,19.46131441]
[1736159692112,23.776884,215.01,214.88,9.22001441]
[1736159692316,23.776884,215.01,214.89,9.22001441]
[1736159692612,9.22001441,214.96,214.89,9.22001441]
[1736159696516,23.776884,215.01,214.89,9.22001441]
[1736159697016,9.22001441,214.96,214.89,9.22001441]
[1736159702015,9.22001441,214.96,214.89,11.16001441]
[1736159703714,9.22001441,214.95,214.89,1.94]
[1736159703901,9.22001441,214.92,214.88,1.94]
[1736159704303,9.22001441,214.93,214.88,1.94]
[1736159704515,11.6282,215.0,214.88,1.94]
[1736159704516,9.22001441,214.94,214.88,1.94]
[1736159705107,9.22001441,214.94,214.88,11.16001441]
[1736159706615,11.6264,215.03,214.89,9.22001441]
[1736159706815,9.22001441,214.97,214.9,9.22001441]
[1736159707217,9.22001441,214.97,214.89,312.0]
[1736159707218,9.22001441,214.96,214.89,321.22001441]
[1736159708509,9.22001441,214.96,214.89,9.22001441]
[1736159709519,23.776884,215.02,214.88,1.94]
[1736159709520,9.22001441,214.94,214.88,1.94]
[1736159710536,9.22001441,214.93,214.88,1.94]
[1736159716327,9.22001441,214.94,214.88,1.94]
[1736159718037,9.22001441,214.94,214.87,8.3013]
[1736159718339,9.22001441,214.94,214.87,10.2413]
[1736159719236,9.22001441,214.93,214.87,10.2413]
[1736159720035,9.22001441,214.94,214.87,10.2413]
[1736159720242,9.22001441,214.94,214.87,19.46131441]
[1736159720817,31.07151547,215.0,214.88,9.22001441]
[1736159720818,9.22001441,214.95,214.88,9.22001441]
[1736159724145,9.22001441,214.96,214.88,9.22001441]
[1736159727072,9.22001441,214.96,214.89,9.22001441]
[1736159728359,9.22001441,214.95,214.88,9.34550441]
[1736159729275,9.22001441,214.95,214.88,0.12549]
[1736159731065,9.22001441,214.95,214.88,2.06549]
[1736159732383,9.22001441,214.95,214.88,1.94]
[1736159733689,9.22001441,214.95,214.88,2.06549]
[1736159738983,9.22001441,214.95,214.88,1.94]
[1736159739560,9.22001441,214.93,214.87,8.3013]
[1736159739776,9.22001441,214.91,214.87,8.3013]
[1736159739989,9.22001441,214.9,214.87,1.6485]
[1736159740182,23.776884,214.98,214.87,1.6485]
[1736159740576,9.22001441,214.92,214.87,1.6485]
[1736159742083,9.22001441,214.91,214.87,1.6485]
[1736159751294,9.22001441,214.88,214.82,6.2595]
[1736159751481,9.22001441,214.85,214.82,6.2595]
[1736159751669,9.22001441,214.85,214.81,1.609]
[1736159753003,9.22001441,214.86,214.81,1.609]
[1736159759076,23.776884,214.91,214.81,1.609]
[1736159759272,11.6322,214.92,214.81,10.82901441]
[1736159759478,20.0,214.91,214.81,1.609]
[1736159759703,9.22001441,214.88,214.81,1.609]
[1736159760014,9.22001441,214.86,214.78,1.98]
[1736159760172,9.22001441,214.86,214.79,9.22001441]
[1736159764082,9.22001441,214.85,214.78,11.20001441]
[1736159764283,9.22001441,214.86,214.78,11.20001441]
[1736159765512,9.22001441,214.84,214.77,8.3398]
[1736159765806,9.22001441,214.83,214.77,8.3398]
[1736159768297,9.22001441,214.83,214.77,6.3598]
[1736159769609,9.22001441,214.79,214.71,8.1515]
[1736159769815,9.22001441,214.77,214.71,10.1315]
[1736159771202,21.86658649,214.84,214.71,10.1315]
[1736159771203,9.22001441,214.79,214.72,9.22001441]
[1736159771615,9.22001441,214.79,214.71,10.1315]
[1736159771916,9.22001441,214.79,214.72,9.22001441]
[1736159775602,9.22001441,214.78,214.71,19.35151441]
[1736159776644,9.22001441,214.78,214.71,17.37151441]
[1736159781323,9.22001441,214.79,214.72,9.22001441]
[1736159782123,17.371514,214.92,214.75,9.22001441]
[1736159782124,9.22001441,214.82,214.75,9.22001441]
[1736159785443,9.22001441,214.81,214.73,0.12549]
[1736159785620,9.22001441,214.81,214.74,9.22001441]
[1736159787452,9.22001441,214.81,214.72,0.12549]
[1736159787622,9.22001441,214.81,214.74,9.22001441]
[1736159788830,9.22001441,214.81,214.74,321.22001441]
[1736159789040,9.22001441,214.81,214.74,9.22001441]
[1736159790153,9.22001441,214.82,214.75,9.22001441]
[1736159790319,9.22001441,214.85,214.77,9.22001441]
[1736159791626,9.22001441,214.85,214.76,1.98]
[1736159791627,9.22001441,214.85,214.78,9.22001441]
[1736159792146,9.22001441,214.86,214.79,9.22001441]
[1736159792322,9.22001441,214.87,214.8,9.22001441]
[1736159796543,9.22001441,214.86,214.79,9.22001441]
[1736159796744,9.22001441,214.84,214.78,1.6442]
[1736159797568,9.22001441,214.83,214.78,1.6442]
[1736159801361,9.22001441,214.84,214.78,1.6442]
[1736159807949,9.22001441,214.83,214.78,1.6442]
[1736159811771,23.776884,214.88,214.78,1.6442]
[1736159811772,9.22001441,214.84,214.78,1.6442]
[1736159812769,9.22001441,214.85,214.78,10.86421441]
[1736159812960,23.776884,214.88,214.78,10.86421441]
[1736159813157,9.22001441,214.86,214.78,10.86421441]
[1736159814253,9.22001441,214.88,214.8,9.22001441]
[1736159815975,9.22001441,214.87,214.8,9.22001441]
[1736159816176,9.22001441,214.87,214.79,9.22001441]
[1736159819450,9.22001441,214.86,214.79,9.22001441]
[1736159820579,9.22001441,214.86,214.78,10.86421441]
[1736159821970,9.22001441,214.86,214.79,9.22001441]
[1736159824486,9.22001441,214.86,214.78,1.6442]
[1736159824676,9.22001441,214.86,214.78,10.86421441]
[1736159825501,9.22001441,214.86,214.79,9.22001441]
[1736159826485,9.22001441,214.87,214.8,9.22001441]
[1736159827174,9.22001441,214.88,214.8,9.22001441]
[1736159827667,9.22001441,214.87,214.8,9.22001441]
[1736159827869,9.22001441,214.86,214.79,9.22001441]
[1736159830285,9.22001441,214.86,214.79,321.22001441]
[1736159830765,9.22001441,214.86,214.79,9.22001441]
[1736159833271,9.22001441,214.87,214.79,9.22001441]
[1736159836314,23.776884,214.91,214.79,9.22001441]
[1736159836465,9.22001441,214.88,214.79,9.22001441]
[1736159837177,9.22001441,214.88,214.81,9.22001441]
[1736159837579,9.22001441,214.89,214.81,9.22001441]
[1736159838594,9.22001441,214.88,214.8,9.22001441]
[1736159840501,9.22001441,214.87,214.79,9.22001441]
[1736159841815,9.22001441,214.86,214.78,12.82421441]
[1736159845615,23.776884,214.91,214.78,12.82421441]
[1736159845808,9.22001441,214.86,214.78,12.82421441]
[1736159846016,9.22001441,214.87,214.79,9.22001441]
[1736159846526,9.22001441,214.87,214.86,0.06012211]
[1736159859235,32.99689841,214.87,214.86,0.06012211]
[1736159862623,9.22001441,214.87,214.86,0.06012211]
[1736159868545,32.99689841,214.87,214.86,0.06012211]
[1736159873032,9.22001441,214.88,214.86,0.06012211]
[1736159874678,23.776884,214.91,214.86,0.06012211]
[1736159874966,9.22001441,214.89,214.86,0.06012211]
[1736159875872,9.22001441,214.88,214.86,0.06012211]
[1736159878286,23.776884,214.91,214.86,0.06012211]
[1736159878461,9.22001441,214.88,214.86,0.06012211]
[1736159880663,9.22001441,214.9,214.86,0.06012211]
[1736159880969,29.22001441,214.91,214.86,0.06012211]
[1736159882952,9.22001441,214.9,214.86,0.06012211]
[1736159883763,20.0,214.92,214.86,0.06012211]
[1736159884085,9.22001441,214.91,214.86,0.06012211]
[1736159884378,18.94076822,214.98,214.86,9.28013652]
[1736159884583,9.22001441,214.95,214.89,1.6203]
[1736159884955,7.31166822,214.98,214.89,8.1756]
[1736159885169,9.22001441,214.97,214.9,9.22001441]
[1736159885698,9.22001441,214.96,214.89,17.39561441]
[1736159885979,9.22001441,214.96,214.89,8.1756]
[1736159886182,9.22001441,214.96,214.89,17.39561441]
[1736159886556,9.22001441,214.95,214.89,8.1756]
[1736159887382,9.22001441,214.94,214.89,8.1756]
[1736159887579,9.22001441,214.95,214.89,8.1756]
[1736159889294,9.22001441,214.93,214.89,8.1756]
[1736159890694,9.22001441,214.94,214.89,8.1756]
[1736159890878,23.776884,214.99,214.89,8.1756]
[1736159891086,9.22001441,214.96,214.89,17.39561441]
[1736159891483,23.776884,214.99,214.89,17.39561441]
[1736159891794,9.22001441,214.96,214.89,17.39561441]
[1736159892168,9.22001441,214.97,214.9,9.22001441]
[1736159893899,9.22001441,214.96,214.89,17.39561441]
[1736159896093,9.22001441,214.97,214.9,9.22001441]
[1736159897083,9.22001441,214.95,214.89,8.1756]
[1736159900293,9.22001441,214.94,214.89,8.1756]
[1736159901802,9.22001441,214.93,214.89,8.1756]
[1736159905603,9.22001441,214.94,214.89,8.1756]
[1736159911701,8.4956,215.04,214.89,8.1756]
[1736159911914,9.22001441,214.95,214.89,8.1756]
[1736159914898,9.22001441,214.96,214.89,8.1756]
[1736159915206,9.22001441,214.96,214.89,17.39561441]
[1736159915529,43.776884,214.99,214.89,17.39561441]
[1736159915718,9.22001441,214.97,214.89,17.39561441]
[1736159916618,9.22001441,214.96,214.89,17.39561441]
[1736159917820,43.776884,214.99,214.89,17.39561441]
[1736159918213,9.22001441,214.96,214.89,17.39561441]
[1736159920823,9.22001441,214.96,214.9,9.22001441]
[1736159922421,9.22001441,214.97,214.9,9.22001441]
[1736159923722,9.22001441,214.96,214.9,9.22001441]
[1736159926628,9.22001441,214.96,214.89,17.39561441]
[1736159929309,9.22001441,214.96,214.9,9.22001441]
[1736159937338,9.22001441,214.96,214.89,17.39561441]
[1736159946432,9.22001441,214.97,214.89,17.39561441]
[1736159950060,7.31166822,215.02,214.9,0.12549]
[1736159950243,16.53168263,215.02,214.93,9.22001441]
[1736159950442,7.31166822,215.02,214.94,9.22001441]
[1736159950639,16.53168263,215.02,214.95,9.22001441]
[1736159950842,9.22001441,215.02,214.95,9.22001441]
[1736159951147,9.22001441,215.01,214.95,9.22001441]
[1736159951349,9.22001441,215.01,214.94,9.22001441]
[1736159951861,9.22001441,215.01,214.95,1.5353]
[1736159952067,9.22001441,215.02,214.95,10.75531441]
[1736159953163,9.22001441,215.01,214.95,1.5353]
[1736159956553,9.22001441,215.0,214.95,1.5353]
[1736159961570,11.6257,215.05,214.95,1.5353]
[1736159961752,9.22001441,215.0,214.95,1.5353]
[1736159961959,9.22001441,214.99,214.95,1.5353]
[1736159962789,9.22001441,215.0,214.95,1.5353]
[1736159962970,9.22001441,214.96,214.89,8.0999]
[1736159963149,9.22001441,214.93,214.89,8.0999]
[1736159965068,20.0,214.99,214.89,8.0999]
[1736159965274,9.22001441,214.94,214.89,8.0999]
[1736159966572,1.94,215.02,214.9,9.22001441]
[1736159966772,9.22001441,214.98,214.91,9.22001441]
[1736159967079,9.22001441,214.99,214.92,9.22001441]
[1736159967376,9.22001441,215.0,214.93,9.22001441]
[1736159972479,7.31166822,215.07,214.97,9.22001441]
[1736159972658,9.22001441,215.04,214.97,9.22001441]
[1736159973681,23.776884,215.07,214.97,9.22001441]
[1736159973881,9.22001441,215.05,214.98,9.22001441]
[1736159982887,9.22001441,215.05,214.99,9.22001441]
[1736159983088,9.22001441,215.07,215.0,9.22001441]
[1736159983385,11.6215,215.12,215.01,9.22001441]
[1736159983560,20.0,215.11,215.01,9.22001441]
[1736159983766,9.22001441,215.09,215.02,9.22001441]
[1736159984077,9.22001441,215.08,215.01,9.22001441]
[1736159984268,9.22001441,215.07,215.0,9.22001441]
[1736159986190,20.0,215.11,215.0,9.22001441]
[1736159986594,9.22001441,215.07,215.0,9.22001441]
[1736159989122,20.0,215.11,215.01,9.22001441]
[1736159989326,9.22001441,215.08,215.01,9.22001441]
[1736159989788,9.22001441,215.09,215.02,9.22001441]
[1736159991807,9.22001441,215.09,215.03,6.5981]
[1736159996314,20.0,215.11,215.03,6.5981]
[1736159996487,9.22001441,215.09,215.03,6.5981]
[1736159996692,20.0,215.11,215.03,6.5981]
[1736159996893,9.22001441,215.09,215.03,6.5981]
[1736159997111,20.0,215.11,215.03,6.5981]
[1736159997415,9.22001441,215.08,215.03,6.5981]
[1736159998324,9.22001441,215.05,215.03,6.5981]
[1736159998638,9.22001441,215.05,214.99,1.5085]
[1736159999327,9.22001441,215.06,214.99,10.72851441]
[1736160000351,9.22001441,215.06,215.0,9.22001441]
[1736160002139,9.22001441,215.07,215.0,9.22001441]
[1736160003033,9.22001441,215.06,215.0,9.22001441]
[1736160003442,9.22001441,215.06,214.99,1.5085]
[1736160003739,9.22001441,215.06,214.99,10.72851441]
[1736160004032,9.22001441,215.05,214.99,1.5085]
[1736160004238,9.22001441,215.04,214.99,1.5085]
[1736160004609,9.22001441,215.05,214.99,1.5085]
[1736160005040,9.22001441,215.04,214.99,1.5085]
[1736160005233,9.22001441,215.05,214.99,1.5085]
[1736160007638,31.6223,215.11,215.0,0.12549]
[1736160007814,9.22001441,215.07,215.0,9.22001441]
[1736160008015,9.22001441,215.06,214.99,10.72851441]
[1736160009438,31.6223,215.11,214.99,10.72851441]
[1736160009635,9.22001441,215.06,214.99,10.72851441]
[1736160010632,9.22001441,215.06,214.99,1.5085]
[1736160010839,9.22001441,215.06,214.99,10.72851441]
[1736160012239,9.22001441,215.06,215.0,9.22001441]
[1736160012545,9.22001441,215.06,214.99,10.72851441]
[1736160014145,9.22001441,215.05,214.99,10.72851441]
[1736160017643,9.22001441,215.05,214.99,1.5085]
[1736160019248,31.6223,215.11,214.99,1.5085]
[1736160019421,9.22001441,215.06,214.99,1.5085]
[1736160024628,9.22001441,215.08,215.0,9.22001441]
[1736160027452,18.93206822,215.14,215.02,9.22001441]
[1736160027662,9.22001441,215.1,215.02,9.22001441]
[1736160030062,9.22001441,215.09,215.02,9.22001441]
[1736160030264,11.6204,215.14,215.01,9.22001441]
[1736160030265,9.22001441,215.08,215.01,9.22001441]
[1736160030852,9.22001441,215.09,215.02,9.22001441]
[1736160032862,9.22001441,215.09,215.02,11.16001441]
[1736160033861,9.22001441,215.09,215.02,1.94]
[1736160034237,9.22001441,215.09,215.02,11.16001441]
[1736160034870,9.22001441,215.08,215.02,1.94]
[1736160038258,9.22001441,215.09,215.02,11.16001441]
[1736160038474,9.22001441,215.08,215.02,1.94]
[1736160040272,7.31166822,215.14,215.03,17.35210441]
[1736160040453,9.22001441,215.11,215.04,9.22001441]
[1736160041873,7.31166822,215.16,215.06,9.22001441]
[1736160042039,9.22001441,215.15,215.08,9.22001441]
[1736160045866,9.22001441,215.15,215.09,1.94]
[1736160048257,9.22001441,215.14,215.09,1.94]
[1736160048568,9.22001441,215.15,215.09,1.94]
[1736160049747,9.22001441,215.14,215.09,1.94]
[1736160050364,9.22001441,215.13,215.09,1.94]
[1736160051688,9.22001441,215.14,215.09,1.94]
[1736160052848,11.6171,215.2,215.09,1.94]
[1736160053055,9.22001441,215.14,215.09,1.94]
[1736160054890,20.0,215.2,215.1,9.22001441]
[1736160055070,20.42736822,215.23,215.1,9.22001441]
[1736160055268,9.22001441,215.16,215.1,9.22001441]
[1736160056072,13.1157,215.23,215.1,9.22001441]
[1736160056248,9.22001441,215.16,215.09,19.06991441]
[1736160057485,9.22001441,215.15,215.09,9.8499]
[1736160061990,11.6165,215.21,215.09,9.8499]
[1736160062166,9.22001441,215.15,215.09,9.8499]
[1736160062365,9.22001441,215.16,215.09,19.06991441]
[1736160064188,20.0,215.21,215.1,9.34550441]
[1736160064397,9.22001441,215.17,215.1,9.34550441]
[1736160066564,20.0,215.21,215.11,9.22001441]
[1736160066766,9.22001441,215.17,215.11,9.22001441]
[1736160067592,9.22001441,215.17,215.1,9.34550441]
[1736160068089,20.0,215.21,215.1,0.12549]
[1736160068290,9.22001441,215.16,215.1,0.12549]
[1736160068677,9.22001441,215.14,215.09,7.9099]
[1736160068875,9.22001441,215.14,215.09,9.8499]
[1736160071101,9.22001441,215.15,215.09,9.8499]
[1736160077393,9.22001441,215.16,215.09,9.8499]
[1736160080525,11.6171,215.2,215.09,9.8499]
[1736160080526,9.22001441,215.15,215.09,9.8499]
[1736160080708,9.22001441,215.12,215.07,1.94]
[1736160084526,9.22001441,215.11,215.07,1.94]
[1736160085634,9.22001441,215.11,215.04,17.14881441]
[1736160085840,9.22001441,215.11,215.04,19.08881441]
[1736160086409,9.22001441,215.11,215.04,17.14881441]
[1736160086606,9.22001441,215.11,215.04,19.08881441]
[1736160091217,9.22001441,215.11,215.04,9.8688]
[1736160091418,9.22001441,215.09,215.04,7.9288]
[1736160091622,9.22001441,215.1,215.04,7.9288]
[1736160092837,9.22001441,215.1,215.04,17.14881441]
[1736160093011,9.22001441,215.1,215.04,7.9288]
[1736160093216,9.22001441,215.1,215.04,17.14881441]
[1736160093410,9.22001441,215.1,215.04,7.9288]
[1736160096038,9.22001441,215.09,215.04,1.6235]
[1736160096247,11.6206,215.14,215.02,9.22001441]
[1736160096248,9.22001441,215.08,215.02,9.22001441]
[1736160097144,9.22001441,215.07,215.0,3.5151]
[1736160097323,9.22001441,215.07,215.0,12.73511441]
[1736160098341,9.22001441,215.07,215.0,10.79511441]
[1736160100344,9.22001441,215.08,215.01,9.22001441]
[1736160100549,9.22001441,215.07,215.01,9.22001441]
[1736160103459,20.0,215.13,215.04,9.22001441]
[1736160103663,20.0,215.12,215.04,9.22001441]
[1736160103830,9.22001441,215.11,215.04,9.22001441]
[1736160106368,9.22001441,215.1,215.03,9.22001441]
[1736160110164,9.22001441,215.1,215.02,9.22001441]
[1736160113656,9.22001441,215.1,215.02,9.22001441]
[1736160116668,9.22001441,215.1,215.03,9.22001441]
[1736160116877,9.22001441,215.11,215.03,9.22001441]
[1736160120354,9.22001441,215.09,215.02,9.22001441]
[1736160120551,9.22001441,215.08,215.0,1.5751]
[1736160120775,9.22001441,215.07,215.0,10.79511441]
[1736160121260,9.22001441,215.06,215.0,1.5751]
[1736160123180,9.22001441,215.06,215.0,10.79511441]
[1736160123783,9.22001441,215.07,215.01,9.22001441]
[1736160123970,9.22001441,215.08,215.01,9.22001441]
[1736160126084,23.776884,215.11,215.01,9.22001441]
[1736160126288,9.22001441,215.08,215.01,9.22001441]
[1736160127285,31.6216,215.12,215.02,9.22001441]
[1736160127466,9.22001441,215.09,215.02,9.22001441]
[1736160132472,31.6216,215.12,215.02,9.22001441]
[1736160132473,9.22001441,215.1,215.02,9.22001441]
[1736160132673,20.0,215.11,215.02,9.22001441]
[1736160132869,29.22001441,215.11,215.02,9.22001441]
[1736160133101,9.22001441,215.1,215.03,9.22001441]
[1736160134989,9.22001441,215.1,215.02,9.22001441]
[1736160135198,9.22001441,215.1,215.02,11.16001441]
[1736160138367,9.22001441,215.09,215.02,11.16001441]
[1736160139309,9.22001441,215.1,215.02,11.16001441]
[1736160139628,9.22001441,215.1,215.03,9.22001441]
[1736160141487,9.22001441,215.09,215.02,11.16001441]
[1736160146419,9.22001441,215.08,215.02,1.94]
[1736160147934,9.22001441,215.08,215.0,12.73511441]
[1736160150108,9.22001441,215.08,215.02,9.22001441]
[1736160156424,9.22001441,215.08,215.0,12.73511441]
[1736160160748,9.22001441,215.08,215.0,1.5751]
[1736160160923,9.22001441,215.08,215.0,3.5151]
[1736160161334,9.22001441,215.06,215.0,3.5151]
[1736160166571,9.22001441,215.06,215.0,1.5751]
[1736160169771,9.22001441,215.08,215.01,9.22001441]
[1736160169973,9.22001441,215.08,215.02,9.22001441]
[1736160170190,9.22001441,215.08,215.01,9.22001441]
[1736160175361,9.22001441,215.08,215.0,10.79511441]
[1736160176172,9.22001441,215.08,215.0,1.5751]
[1736160176478,9.22001441,215.06,215.0,1.5751]
[1736160177079,9.22001441,215.04,215.0,1.5751]
[1736160178790,9.22001441,215.05,215.0,1.5751]
[1736160180585,11.6225,215.1,215.0,1.5751]
[1736160180873,9.22001441,215.06,215.0,1.5751]
[1736160181886,11.6225,215.1,215.0,1.5751]
[1736160182189,9.22001441,215.07,215.0,10.79511441]
[1736160182482,9.22001441,215.07,215.0,1.5751]
[1736160183366,9.22001441,215.06,215.0,1.5751]
[1736160193686,9.22001441,215.04,215.0,1.5751]
[1736160196168,9.22001441,215.02,214.93,8.1819]
[1736160196362,9.22001441,214.98,214.93,8.1819]
[1736160201107,9.22001441,214.99,214.93,8.1819]
[1736160202216,9.22001441,214.94,214.93,1.6507]
[1736160202887,9.22001441,214.94,214.88,19.33391441]
[1736160203410,9.22001441,214.96,214.89,9.22001441]
[1736160203705,9.22001441,214.99,214.92,9.22001441]
[1736160204685,9.22001441,214.96,214.88,22.44604574]
[1736160204877,9.22001441,214.96,214.89,9.22001441]
[1736160206213,9.22001441,214.96,214.88,21.7482]
[1736160206403,9.22001441,214.96,214.89,9.22001441]
[1736160207214,20.0,215.01,214.89,9.22001441]
[1736160207517,9.22001441,214.96,214.89,9.22001441]
[1736160207884,9.22001441,214.94,214.88,10.1139]
[1736160210414,9.22001441,214.93,214.88,10.1139]
[1736160210721,9.22001441,214.92,214.88,10.1139]
[1736160212706,9.22001441,214.94,214.88,10.1139]
[1736160218725,9.22001441,214.95,214.88,19.33391441]
[1736160218911,9.22001441,214.97,214.9,9.22001441]
[1736160220728,11.6278,215.01,214.9,9.22001441]
[1736160220928,9.22001441,214.97,214.9,9.22001441]
[1736160222335,20.0,215.01,214.92,9.22001441]
[1736160222627,9.22001441,214.99,214.92,9.22001441]
[1736160223205,9.22001441,214.98,214.92,9.22001441]
[1736160224627,9.22001441,214.98,214.91,9.22001441]
[1736160225224,9.22001441,214.98,214.89,0.69788785]
[1736160225405,9.22001441,214.97,214.9,9.22001441]
[1736160226925,9.22001441,214.98,214.91,9.22001441]
[1736160227729,20.0,215.01,214.91,9.22001441]
[1736160227922,9.22001441,214.98,214.91,9.22001441]
[1736160231722,9.22001441,214.99,214.92,9.22001441]
[1736160237726,9.22001441,214.98,214.92,9.22001441]
[1736160238325,20.0,215.01,214.92,9.22001441]
[1736160238532,9.22001441,214.97,214.89,0.82328701]
[1736160238838,9.22001441,214.94,214.89,1.94]
[1736160239408,9.22001441,214.93,214.88,10.1139]
[1736160241438,9.22001441,214.93,214.88,8.1739]
[1736160241648,9.22001441,214.92,214.88,8.1739]
[1736160242008,35.404784,215.0,214.88,8.1739]
[1736160242009,9.22001441,214.9,214.88,8.1739]
[1736160242229,9.22001441,214.89,214.88,8.1739]